fUST/lending_fUST_20240907
["ID","MTS","AMOUNT","RATE_DAILY","PERIOD"]
[337415545,1725655843348,-500.0,0.00019178,2]
[337415546,1725655843358,-500.0,0.00019178,2]
[337415549,1725655843368,-500.0,0.00019178,2]
[337415551,1725655843378,-500.0,0.00019178,2]
[337415553,1725655843387,-500.0,0.00019178,2]
[337415555,1725655843397,-500.0,0.00019178,2]
[337415557,1725655843415,-500.0,0.00019178,2]
[337415559,1725655843425,-500.0,0.00019178,2]
[337415561,1725655843434,-500.0,0.00019178,2]
[337415563,1725655843444,-500.0,0.00019178,2]
[337415565,1725655843454,-500.0,0.00019178,2]
[337415568,1725655843464,-500.0,0.00019178,2]
[337415570,1725655843473,-500.0,0.00019178,2]
[337415573,1725655843483,-500.0,0.00019178,2]
[337415576,1725655843492,-500.0,0.00019178,2]
[337415578,1725655843501,-629.40350393,0.00019178,2]
[337415580,1725655843512,-500.0,0.00019178,2]
[337415582,1725655843522,-177.243912,0.00019178,2]
[337415584,1725655843533,-159.987184,0.00019178,2]
[337415586,1725655843543,-251.0,0.00019178,2]
[337415588,1725655843553,-170.029222,0.00019178,2]
[337415590,1725655843563,-150.112233,0.000192,2]
[337415592,1725655843573,-150.112233,0.000192,2]
[337415594,1725655843583,-393.4655595,0.00019451,2]
[337415596,1725655843593,-500.0,0.00019452,2]
[337415598,1725655843603,-500.0,0.00019452,2]
[337415600,1725655843613,-500.0,0.00019452,2]
[337415602,1725655843626,-500.0,0.00019452,2]
[337415604,1725655843636,-500.0,0.00019452,2]
[337415606,1725655843646,-500.0,0.00019452,2]
[337415608,1725655843665,-500.0,0.00019452,2]
[337415609,1725655843682,-500.0,0.00019452,2]
[337415611,1725655843693,-500.0,0.00019452,2]
[337415613,1725655843704,-500.0,0.00019452,2]
[337415615,1725655843715,-500.0,0.00019452,2]
[337415617,1725655843725,-500.0,0.00019452,2]
[337415619,1725655843737,-500.0,0.00019452,2]
[337415621,1725655843747,-500.0,0.00019452,2]
[337415623,1725655843758,-500.0,0.00019452,2]
[337415625,1725655843768,-500.0,0.00019452,2]
[337415627,1725655843781,-663.69,0.00019452,2]
[337415629,1725655843791,-460.53985307,0.00019452,2]
[337415631,1725655843802,-500.0,0.00019452,2]
[337415633,1725655843814,-500.0,0.00019452,2]
[337415634,1725655843824,-244.27849345,0.00019452,2]
[337415636,1725655843835,-500.0,0.00019452,2]
[337415638,1725655843846,-151.0,0.00019452,2]
[337415640,1725655843857,-372.65757234,0.00019452,2]
[337415642,1725655843868,-500.0,0.00019452,2]
[337415644,1725655843881,-500.0,0.00019452,2]
[337415646,1725655843892,-500.0,0.00019452,2]
[337415648,1725655843902,-500.0,0.00019452,2]
[337415650,1725655843914,-500.0,0.00019452,2]
[337415652,1725655843925,-592.64096703,0.00019452,2]
[337415654,1725655843935,-500.0,0.00019452,2]
[337415656,1725655843946,-500.0,0.00019452,2]
[337415658,1725655843957,-964.9,0.00019452,2]
[337415660,1725655843969,-500.0,0.00019452,2]
[337415662,1725655843980,-500.0,0.00019452,2]
[337415664,1725655843991,-500.0,0.00019452,2]
[337415666,1725655844002,-500.0,0.00019452,2]
[337415668,1725655844013,-500.0,0.00019452,2]
[337415670,1725655844025,-500.0,0.00019452,2]
[337415672,1725655844035,-500.0,0.00019452,2]
[337415674,1725655844046,-500.0,0.00019452,2]
[337415676,1725655844057,-500.0,0.00019452,2]
[337415678,1725655844068,-500.0,0.00019452,2]
[337415680,1725655844078,-500.0,0.00019452,2]
[337415682,1725655844090,-344.51489787,0.00019452,2]
[337415684,1725655844109,-155.48510213,0.00019452,2]
[337415686,1725655844121,-500.0,0.00019452,2]
[337415688,1725655844132,-138.00893994,0.00019452,2]
[337415718,1725655844478,-648.86,0.00019178,2]
[337415720,1725655844489,-1005.4,0.00019178,2]
[337415722,1725655844500,-361.99106006,0.00019452,2]
[337415724,1725655844511,-500.0,0.00019452,2]
[337415726,1725655844522,-233.05037155,0.00019452,2]
[337415735,1725655844603,-371.81962845,0.00019452,2]
[337415737,1725655844613,-500.0,0.00019452,2]
[337415739,1725655844627,-500.0,0.00019452,2]
[337415741,1725655844638,-418.453678,0.00019452,2]
[337415743,1725655844649,-500.0,0.00019452,2]
[337415745,1725655844659,-418.453678,0.00019452,2]
[337415747,1725655844668,-500.0,0.00019452,2]
[337415749,1725655844679,-234.255777,0.00019452,2]
[337415751,1725655844706,-500.0,0.00019452,2]
[337415753,1725655844717,-234.255777,0.00019452,2]
[337415755,1725655844727,-500.0,0.00019452,2]
[337415757,1725655844739,-500.0,0.00019452,2]
[337415759,1725655844749,-500.0,0.00019452,2]
[337415761,1725655844759,-500.0,0.00019452,2]
[337415763,1725655844769,-500.0,0.00019452,2]
[337415765,1725655844779,-239.95025309,0.00019452,2]
[337415767,1725655844789,-500.0,0.00019452,2]
[337415769,1725655844799,-540.01,0.00019452,2]
[337415771,1725655844810,-500.0,0.00019452,2]
[337415774,1725655844821,-500.0,0.00019452,2]
[337415776,1725655844831,-500.0,0.00019452,2]
[337415778,1725655844841,-500.0,0.00019452,2]
[337415779,1725655844850,-962.87,0.00019452,2]
[337415781,1725655844859,-500.0,0.00019452,2]
[337415784,1725655844870,-500.0,0.00019452,2]
[337415786,1725655844880,-500.0,0.00019452,2]
[337415787,1725655844890,-500.0,0.00019452,2]
[337415789,1725655844900,-500.0,0.00019452,2]
[337415791,1725655844909,-710.76,0.00019452,2]
[337415794,1725655844920,-500.0,0.00019452,2]
[337415795,1725655844930,-500.0,0.00019452,2]
[337415797,1725655844939,-500.0,0.00019452,2]
[337415799,1725655844949,-554.5984841,0.00019452,2]
[337415801,1725655844959,-500.0,0.00019452,2]
[337415803,1725655844968,-500.0,0.00019452,2]
[337415805,1725655844978,-500.0,0.00019452,2]
[337415808,1725655844987,-500.0,0.00019452,2]
[337415810,1725655844997,-660.79,0.00019452,2]
[337415812,1725655845006,-500.0,0.00019452,2]
[337415814,1725655845015,-500.0,0.00019452,2]
[337415816,1725655845025,-500.0,0.00019452,2]
[337415817,1725655845034,-500.0,0.00019452,2]
[337415819,1725655845043,-500.0,0.00019452,2]
[337415821,1725655845052,-500.0,0.00019452,2]
[337415823,1725655845061,-151.0,0.00019452,2]
[337415825,1725655845071,-500.0,0.00019452,2]
[337415828,1725655845082,-1193.15,0.00019452,2]
[337415830,1725655845092,-500.0,0.00019452,2]
[337415832,1725655845101,-565.66371334,0.00019452,2]
[337415834,1725655845112,-500.0,0.00019452,2]
[337415836,1725655845122,-500.0,0.00019452,2]
[337415838,1725655845132,-514.19,0.00019452,2]
[337415840,1725655845142,-500.0,0.00019452,2]
[337415842,1725655845152,-500.0,0.00019452,2]
[337415844,1725655845161,-500.0,0.00019452,2]
[337415846,1725655845172,-500.0,0.00019452,2]
[337415848,1725655845182,-500.0,0.00019452,2]
[337415849,1725655845211,-500.0,0.00019452,2]
[337415852,1725655845222,-500.0,0.00019452,2]
[337415853,1725655845232,-151.0,0.00019452,2]
[337415855,1725655845242,-536.06,0.00019452,2]
[337415857,1725655845251,-151.0,0.00019452,2]
[337415859,1725655845262,-151.0,0.00019452,2]
[337415860,1725655845273,-500.0,0.00019452,2]
[337415861,1725655845284,-500.0,0.00019452,2]
[337415862,1725655845294,-188.746474,0.00019452,2]
[337415863,1725655845305,-506.97082723,0.00019452,2]
[337415864,1725655845326,-500.0,0.00019452,2]
[337415865,1725655845337,-500.0,0.00019452,2]
[337415866,1725655845347,-500.0,0.00019452,2]
[337415867,1725655845359,-500.0,0.00019452,2]
[337415868,1725655845369,-500.0,0.00019452,2]
[337415869,1725655845381,-500.0,0.00019452,2]
[337415870,1725655845392,-500.0,0.00019452,2]
[337415871,1725655845403,-151.0,0.00019452,2]
[337415872,1725655845414,-539.41,0.00019452,2]
[337415873,1725655845426,-500.0,0.00019452,2]
[337415874,1725655845438,-500.0,0.00019452,2]
[337415875,1725655845449,-500.0,0.00019452,2]
[337415876,1725655845460,-151.0,0.00019452,2]
[337415878,1725655845470,-151.0,0.00019452,2]
[337415880,1725655845481,-151.0,0.00019452,2]
[337415882,1725655845492,-500.0,0.00019452,2]
[337415884,1725655845504,-500.0,0.00019452,2]
[337415886,1725655845516,-500.0,0.00019452,2]
[337415888,1725655845530,-500.0,0.00019452,2]
[337415890,1725655845541,-589.62,0.00019452,2]
[337415892,1725655845552,-500.0,0.00019452,2]
[337415898,1725655845606,-500.0,0.00019452,2]
[337415900,1725655845619,-500.0,0.00019452,2]
[337415902,1725655845629,-9291.25,0.00019452,2]
[337415904,1725655845640,-500.0,0.00019452,2]
[337415906,1725655845652,-500.0,0.00019452,2]
[337415908,1725655845663,-500.0,0.00019452,2]
[337415910,1725655845675,-500.0,0.00019452,2]
[337415912,1725655845687,-500.0,0.00019452,2]
[337415914,1725655845698,-500.0,0.00019452,2]
[337415916,1725655845709,-1040.31,0.00019452,2]
[337415918,1725655845720,-747.63,0.00019452,2]
[337415920,1725655845732,-500.0,0.00019452,2]
[337415922,1725655845743,-2089.68,0.00019452,2]
[337415924,1725655845755,-500.0,0.00019452,2]
[337415926,1725655845765,-714.83,0.00019452,2]
[337415928,1725655845776,-819.49,0.00019452,2]
[337415929,1725655845786,-310.42308141,0.00019452,2]
[337415931,1725655845795,-500.0,0.00019452,2]
[337415933,1725655845806,-500.0,0.00019452,2]
[337415935,1725655845817,-500.0,0.00019452,2]
[337415938,1725655845827,-212.905557,0.00019452,2]
[337415940,1725655845838,-500.0,0.00019452,2]
[337415942,1725655845848,-500.0,0.00019452,2]
[337415944,1725655845858,-757.25,0.00019452,2]
[337415946,1725655845869,-500.0,0.00019452,2]
[337415948,1725655845879,-151.0,0.00019452,2]
[337415950,1725655845889,-837.11,0.00019452,2]
[337415953,1725655845899,-678.67,0.00019452,2]
[337415956,1725655845910,-151.0,0.00019452,2]
[337415958,1725655845920,-1620.34,0.00019452,2]
[337415960,1725655845930,-263.79675621,0.00019452,2]
[337415962,1725655845942,-500.0,0.00019452,2]
[337415964,1725655845953,-500.0,0.00019452,2]
[337415966,1725655845964,-500.0,0.00019452,2]
[337415968,1725655845974,-674.19,0.00019452,2]
[337415970,1725655845985,-500.0,0.00019452,2]
[337415972,1725655845996,-500.0,0.00019452,2]
[337415974,1725655846006,-500.0,0.00019452,2]
[337415976,1725655846016,-500.0,0.00019452,2]
[337415978,1725655846027,-500.0,0.00019452,2]
[337415979,1725655846037,-500.0,0.00019452,2]
[337415981,1725655846051,-1026.32,0.00019452,2]
[337415983,1725655846061,-500.0,0.00019452,2]
[337415985,1725655846072,-500.0,0.00019452,2]
[337415988,1725655846083,-500.0,0.00019452,2]
[337415989,1725655846093,-500.0,0.00019452,2]
[337415991,1725655846104,-500.0,0.00019452,2]
[337415993,1725655846114,-500.0,0.00019452,2]
[337415995,1725655846124,-356.53523127,0.00019452,2]
[337415997,1725655846135,-500.0,0.00019452,2]
[337415999,1725655846145,-500.0,0.00019452,2]
[337416001,1725655846159,-500.0,0.00019452,2]
[337416004,1725655846170,-500.0,0.00019452,2]
[337416005,1725655846180,-151.0,0.00019452,2]
[337416007,1725655846191,-500.0,0.00019452,2]
[337416009,1725655846202,-151.0,0.00019452,2]
[337416011,1725655846213,-1161.24,0.00019452,2]
[337416013,1725655846223,-500.0,0.00019452,2]
[337416015,1725655846234,-500.0,0.00019452,2]
[337416017,1725655846244,-500.0,0.00019452,2]
[337416019,1725655846254,-500.0,0.00019452,2]
[337416021,1725655846265,-500.0,0.00019452,2]
[337416023,1725655846275,-500.0,0.00019452,2]
[337416025,1725655846286,-500.0,0.00019452,2]
[337416027,1725655846297,-500.0,0.00019452,2]
[337416029,1725655846308,-500.0,0.00019452,2]
[337416031,1725655846319,-500.0,0.00019452,2]
[337416033,1725655846330,-2112.2,0.00019452,2]
[337416035,1725655846343,-500.0,0.00019452,2]
[337416037,1725655846353,-500.0,0.00019452,2]
[337416039,1725655846364,-500.0,0.00019452,2]
[337416041,1725655846375,-500.0,0.00019452,2]
[337416043,1725655846386,-500.0,0.00019452,2]
[337416045,1725655846398,-500.0,0.00019452,2]
[337416047,1725655846408,-500.0,0.00019452,2]
[337416049,1725655846419,-500.0,0.00019452,2]
[337416051,1725655846431,-845.36,0.00019452,2]
[337416052,1725655846442,-500.0,0.00019452,2]
[337416054,1725655846452,-500.0,0.00019452,2]
[337416056,1725655846463,-1146.86,0.00019452,2]
[337416058,1725655846473,-500.0,0.00019452,2]
[337416060,1725655846484,-986.72,0.00019452,2]
[337416062,1725655846495,-151.0,0.00019452,2]
[337416064,1725655846506,-500.0,0.00019452,2]
[337416066,1725655846520,-151.0,0.00019452,2]
[337416068,1725655846531,-500.0,0.00019452,2]
[337416070,1725655846541,-500.0,0.00019452,2]
[337416072,1725655846553,-151.0,0.00019452,2]
[337416074,1725655846567,-500.0,0.00019452,2]
[337416077,1725655846579,-500.0,0.00019452,2]
[337416079,1725655846590,-500.0,0.00019452,2]
[337416081,1725655846600,-500.0,0.00019452,2]
[337416083,1725655846611,-500.0,0.00019452,2]
[337416084,1725655846625,-675.06,0.00019452,2]
[337416086,1725655846635,-655.79,0.00019452,2]
[337416088,1725655846646,-500.0,0.00019452,2]
[337416090,1725655846657,-506.69,0.00019452,2]
[337416092,1725655846669,-500.0,0.00019452,2]
[337416094,1725655846679,-500.0,0.00019452,2]
[337416096,1725655846691,-509.21608463,0.00019452,2]
[337416098,1725655846702,-743.45,0.00019452,2]
[337416100,1725655846712,-724.33,0.00019452,2]
[337416102,1725655846723,-151.0,0.00019452,2]
[337416104,1725655846734,-500.0,0.00019452,2]
[337416106,1725655846745,-500.0,0.00019452,2]
[337416108,1725655846756,-151.0,0.00019452,2]
[337416110,1725655846769,-3475.71,0.00019452,2]
[337416113,1725655846780,-500.0,0.00019452,2]
[337416114,1725655846789,-500.0,0.00019452,2]
[337416116,1725655846801,-500.0,0.00019452,2]
[337416118,1725655846810,-500.0,0.00019452,2]
[337416120,1725655846820,-500.0,0.00019452,2]
[337416122,1725655846830,-500.0,0.00019452,2]
[337416124,1725655846841,-500.0,0.00019452,2]
[337416126,1725655846852,-35411.51,0.00019452,2]
[337416128,1725655846862,-500.0,0.00019452,2]
[337416130,1725655846873,-500.0,0.00019452,2]
[337416132,1725655846883,-500.0,0.00019452,2]
[337416134,1725655846892,-500.0,0.00019452,2]
[337416136,1725655846902,-509.08141558,0.00019452,2]
[337416138,1725655846912,-648.85,0.00019452,2]
[337416140,1725655846922,-5055.34720734,0.00019452,2]
[337416142,1725655846938,-2200.00000011,0.00019452,2]
[337416207,1725656092940,199.54105557,0.00017753,2]
[337416208,1725656092983,199.54105557,0.00017753,2]
[337416209,1725656093025,199.54105557,0.00017753,2]
[337416210,1725656093063,199.54105557,0.00017753,2]
[337416211,1725656093103,199.54105557,0.00017753,2]
[337416212,1725656093146,199.54105557,0.00017753,2]
[337416213,1725656093183,71.03366657,0.00017753,2]
[337416223,1725656808841,200.0,0.00033549,30]
[337416224,1725656809227,200.0,0.00033549,30]
[337416225,1725656809569,200.0,0.00033549,30]
[337416226,1725656810020,263.599999,0.00033549,30]
[337416227,1725656813228,200.0,0.00033549,30]
[337416228,1725656813886,200.0,0.00033549,30]
[337416229,1725656814289,200.0,0.00033549,30]
[337416230,1725656814618,200.0,0.00033549,30]
[337416231,1725656814963,200.0,0.00033549,30]
[337416233,1725656850295,200.0,0.00033549,30]
[337416234,1725656850721,200.0,0.00033549,30]
[337416235,1725656851480,200.0,0.00033549,30]
[337416236,1725656851956,200.0,0.00033549,30]
[337416237,1725656852427,200.0,0.00033549,30]
[337416238,1725656852928,200.0,0.00033549,30]
[337416239,1725656853324,255.2,0.00033549,30]
[337416240,1725656854667,200.0,0.00033549,30]
[337416241,1725656855146,200.0,0.00033549,30]
[337416242,1725656855552,200.0,0.00033549,30]
[337416243,1725656856432,200.0,0.00033549,30]
[337416244,1725656856978,200.0,0.00033549,30]
[337416245,1725656857360,200.0,0.00033549,30]
[337416246,1725656857762,255.2,0.00033549,30]
[337416247,1725656861220,200.0,0.00033549,30]
[337416248,1725656861920,200.0,0.00033549,30]
[337416249,1725656862391,200.0,0.00033549,30]
[337416250,1725656863040,200.0,0.00033549,30]
[337416251,1725656863262,200.0,0.00033549,30]
[337416252,1725656863702,200.0,0.00033549,30]
[337416253,1725656864111,255.2,0.00033549,30]
[337416258,1725656907203,-160.154851,0.00018223,2]
[337416260,1725656907239,-58.16015332,0.00018698,2]
[337416262,1725656907283,-101.99469768,0.00018698,2]
[337416263,1725656907315,-116.32030664,0.00018979,2]
[337416265,1725656907353,-34.80910605,0.00018979,2]
[337416278,1725656931730,-227.74378661,0.00019039,2]
[337416279,1725656931793,-227.74378661,0.00019039,2]
[337416280,1725656931847,-227.74378661,0.00019039,2]
[337416281,1725656956776,-241.40841381,0.00019039,2]
[337416282,1725656956893,-241.40841381,0.00019039,2]
[337416283,1725656981733,-251.06475036,0.00019039,2]
[337416284,1725656981992,-251.06475036,0.00019039,2]
[337416285,1725657006762,-261.10734037,0.00019039,2]
[337416286,1725657006831,-261.10734037,0.00019039,2]
[337416287,1725657006873,-255.70991491,0.00019039,2]
[337416324,1725657032471,-529.99,0.00019039,2]
[337416327,1725657032484,-5093.37263358,0.00019039,2]
[337416329,1725657032493,-914.8969921,0.00019058,2]
[337416330,1725657032503,-1000.0,0.00019068,2]
[337416332,1725657032512,-300.0,0.00019072,2]
[337416333,1725657032522,-572.65998209,0.00019073,2]
[337416334,1725657032531,-714.22080165,0.00019073,2]
[337416335,1725657032541,-572.65998206,0.00019143,2]
[337416336,1725657032551,-6521.87720092,0.00019158,2]
[337416402,1725657038740,-112944.77424543,0.00019158,2]
[337416404,1725657038752,-16116.92325268,0.00019158,2]
[337416407,1725657038764,-2293.90775319,0.00019158,2]
[337416723,1725657042740,-3209.26334271,0.00019158,2]
[337416724,1725657042796,-47635.1255894,0.00019158,2]
[337416763,1725657043526,-22464.89558201,0.00019158,2]
[337416764,1725657043538,-530.0,0.00019158,2]
[337416765,1725657043561,-15.90984931,0.00019158,2]
[337416766,1725657043778,-1002.7771949,0.00019158,2]
[337416878,1725657180628,152.0,8.8e-07,30]
[337416883,1725657680990,214.06334077,0.00017753,2]
[337416884,1725657681023,214.06334077,0.00017753,2]
[337416885,1725657681056,214.06334077,0.00017753,2]
[337416886,1725657681086,214.06334077,0.00017753,2]
[337416887,1725657703099,285.32034191,0.0001701,2]
[337416890,1725657752023,200.0,0.00033538,30]
[337416891,1725657752422,255.4,0.00033538,30]
[337416892,1725657752831,200.0,0.00033538,30]
[337416893,1725657753337,200.0,0.00033538,30]
[337416894,1725657753772,200.0,0.00033538,30]
[337416895,1725657754379,200.0,0.00033538,30]
[337416896,1725657754815,200.0,0.00033538,30]
[337416897,1725657755293,200.0,0.00033538,30]
[337416898,1725657755902,255.2,0.00033538,30]
[337416906,1725658049148,212.7,0.00018,10]
[337416907,1725658054143,5000.0,0.0001701,2]
[337416908,1725658069227,5000.0,0.0001701,2]
[337416911,1725658084193,5000.0,0.0001701,2]
[337416913,1725658092341,1648.77513655,0.0001701,2]
[337416915,1725658100339,4143.74663692,0.0001701,2]
[337416917,1725658109257,-160.154851,0.0001823,2]
[337416919,1725658109289,-71.03355704,0.00018864,2]
[337416920,1725658109331,-231.18840804,0.00018864,2]
[337416922,1725658109375,-181.36982085,0.00018864,2]
[337416923,1725658123122,5790.599935,0.00014,2]
[337416924,1725658134367,-244.06334077,0.00018864,2]
[337416928,1725658134463,-244.06334077,0.00018864,2]
[337416929,1725658159380,-253.82587441,0.00018864,2]
[337416930,1725658159441,-253.82587441,0.00018864,2]
[337416931,1725658184485,-263.97890938,0.00018864,2]
[337416932,1725658184542,-263.97890938,0.00018864,2]
[337416933,1725658184592,-21.89396172,0.00018864,2]
[337416934,1725658184623,-242.08494766,0.00019028,2]
[337416935,1725658209368,-279.81764394,0.00019028,2]
[337416955,1725658232580,-278.63227647,0.00019028,2]
[337416958,1725658232590,-343.59598926,0.00019038,2]
[337416960,1725658232600,-642.79872153,0.00019048,2]
[337416962,1725658232610,-176.52,0.00019119,3]
[337416964,1725658232620,-300.0,0.00019128,2]
[337416966,1725658232631,-20394.2784912,0.00019129,2]
[337416968,1725658232644,-2680.79781249,0.00019129,2]
[337416986,1725658238761,-88501.17743431,0.00019129,2]
[337416987,1725658238772,-8926.57158527,0.00019129,2]
[337416992,1725658240851,-31483.64575883,0.00019129,2]
[337416993,1725658240861,-22315.2507476,0.00019136,2]
[337416994,1725658240870,-8082.04346883,0.00019136,2]
[337416995,1725658240879,-18007.76937599,0.00019137,3]
[337416996,1725658240889,-50876.29890389,0.00019137,2]
[337417025,1725658254717,-38384.70408641,0.00019137,2]
[337417026,1725658254726,-48492.260813,0.00019137,2]
[337417027,1725658254735,-8082.04346883,0.00019168,2]
[337417028,1725658254744,-56574.3042818,0.00019168,2]
[337417029,1725658254754,-500.0,0.00019173,2]
[337417030,1725658254764,-319.51501656,0.00019173,2]
[337417031,1725658254773,-500.94504749,0.00019173,2]
[337417032,1725658254782,-500.0,0.00019173,2]
[337417033,1725658254792,-160.18904169,0.00019173,2]
[337417034,1725658254802,-500.0,0.00019173,2]
[337417035,1725658254812,-310.30932798,0.00019173,2]
[337417036,1725658254822,-500.0,0.00019173,2]
[337417037,1725658254831,-343.36791284,0.00019173,2]
[337417038,1725658254840,-500.0,0.00019173,2]
[337417039,1725658254850,-500.0,0.00019177,2]
[337417040,1725658254860,-170.10432082,0.00019177,2]
[337417041,1725658254870,-485.39563344,0.00019177,2]
[337417042,1725658254879,-500.0,0.00019177,2]
[337417043,1725658254889,-500.0,0.00019177,2]
[337417044,1725658254899,-500.0,0.00019177,2]
[337417045,1725658254908,-500.0,0.00019177,2]
[337417046,1725658254918,-500.0,0.00019177,2]
[337417047,1725658254928,-500.0,0.00019177,2]
[337417048,1725658254937,-500.0,0.00019177,2]
[337417049,1725658254947,-631.64956303,0.00019177,2]
[337417050,1725658254958,-500.0,0.00019177,2]
[337417051,1725658254967,-500.0,0.00019177,2]
[337417052,1725658254976,-284.19442196,0.00019177,2]
[337417053,1725658254986,-500.0,0.00019177,2]
[337417054,1725658254995,-500.0,0.00019177,2]
[337417055,1725658255006,-500.0,0.00019177,2]
[337417056,1725658255015,-500.0,0.00019177,2]
[337417057,1725658255027,-500.0,0.00019177,2]
[337417058,1725658255037,-500.0,0.00019177,2]
[337417059,1725658255048,-500.0,0.00019177,2]
[337417060,1725658255059,-500.0,0.00019177,2]
[337417061,1725658255069,-500.0,0.00019177,2]
[337417062,1725658255078,-500.0,0.00019178,2]
[337417063,1725658255089,-500.0,0.00019178,2]
[337417064,1725658255098,-500.0,0.00019178,2]
[337417065,1725658255107,-500.0,0.00019178,2]
[337417066,1725658255116,-500.0,0.00019178,2]
[337417067,1725658255126,-500.0,0.00019178,2]
[337417068,1725658255135,-646.1,0.00019178,2]
[337417069,1725658255146,-500.0,0.00019178,2]
[337417070,1725658255156,-309.04707599,0.00019178,2]
[337417071,1725658255166,-500.0,0.00019178,2]
[337417072,1725658255175,-500.0,0.00019178,2]
[337417073,1725658255184,-500.0,0.00019178,2]
[337417074,1725658255193,-500.0,0.00019178,2]
[337417075,1725658255203,-500.0,0.00019178,2]
[337417076,1725658255212,-500.0,0.00019178,2]
[337417077,1725658255221,-500.0,0.00019178,2]
[337417078,1725658255230,-500.0,0.00019178,2]
[337417079,1725658255240,-500.0,0.00019178,2]
[337417080,1725658255249,-500.0,0.00019178,2]
[337417081,1725658255259,-500.0,0.00019178,2]
[337417082,1725658255269,-500.0,0.00019178,2]
[337417083,1725658255280,-500.0,0.00019178,2]
[337417084,1725658255290,-500.0,0.00019178,2]
[337417085,1725658255300,-500.0,0.00019178,2]
[337417086,1725658255311,-500.0,0.00019178,2]
[337417087,1725658255320,-500.0,0.00019178,2]
[337417088,1725658255329,-500.0,0.00019178,2]
[337417089,1725658255339,-500.0,0.00019178,2]
[337417090,1725658255353,-200.0,0.00019178,2]
[337417091,1725658255363,-500.0,0.00019178,2]
[337417092,1725658255373,-500.0,0.00019178,2]
[337417093,1725658255382,-500.0,0.00019178,2]
[337417094,1725658255393,-500.0,0.00019178,2]
[337417095,1725658255402,-500.0,0.00019178,2]
[337417096,1725658255412,-500.0,0.00019178,2]
[337417097,1725658255424,-500.0,0.00019178,2]
[337417098,1725658255436,-500.0,0.00019178,2]
[337417099,1725658255446,-500.0,0.00019178,2]
[337417100,1725658255457,-500.0,0.00019178,2]
[337417101,1725658255466,-526.92186355,0.00019178,2]
[337417102,1725658255475,-626.47920508,0.00019178,2]
[337417103,1725658255484,-500.0,0.00019178,2]
[337417104,1725658255494,-500.0,0.00019178,2]
[337417105,1725658255503,-500.0,0.00019178,2]
[337417106,1725658255513,-188.4916022,0.00019178,2]
[337417107,1725658255522,-500.0,0.00019178,2]
[337417108,1725658255531,-500.0,0.00019178,2]
[337417109,1725658255541,-500.0,0.00019178,2]
[337417110,1725658255551,-500.0,0.00019178,2]
[337417111,1725658255560,-500.0,0.00019178,2]
[337417112,1725658255569,-500.0,0.00019178,2]
[337417113,1725658255579,-500.0,0.00019178,2]
[337417114,1725658255588,-500.0,0.00019178,2]
[337417115,1725658255602,-500.0,0.00019178,2]
[337417116,1725658255614,-500.0,0.00019178,2]
[337417117,1725658255625,-500.0,0.00019178,2]